bitfinex-derivatives/quotes_BTCF0:USTF0_20241210
["timestamp","ask_amount","ask_price","bid_price","bid_amount"]
[1733851584833,0.3608,94885.0,94884.0,0.052677]
[1733851585043,0.01066729,94905.0,94894.0,0.052671]
[1733851585230,0.09375242,94916.0,94908.0,0.052664]
[1733851585632,0.052653,94929.0,94908.0,0.052784]
[1733851585827,0.052653,94928.0,94908.0,0.09887469]
[1733851586033,0.052651,94931.0,94908.0,0.09887469]
[1733851586228,0.052652,94930.0,94908.0,0.4274417]
[1733851586434,0.052652,94930.0,94920.0,0.052657]
[1733851586731,0.052654,94926.0,94920.0,0.60150983]
[1733851586942,0.01089602,94927.0,94920.0,0.60150983]
[1733851587138,0.01089602,94927.0,94920.0,0.413577]
[1733851587440,0.00019086,94921.0,94920.0,0.413577]
[1733851587636,0.00019086,94921.0,94920.0,0.414577]
[1733851588927,0.00019086,94921.0,94920.0,0.60250983]
[1733851589127,0.00019086,94921.0,94920.0,0.414577]
[1733851589830,0.00019086,94921.0,94920.0,0.413577]
[1733851590034,0.00119086,94921.0,94920.0,0.36092]
[1733851590235,1.50119086,94921.0,94920.0,0.00012]
[1733851590432,0.00019086,94921.0,94920.0,0.00012]
[1733851590632,0.00119086,94921.0,94920.0,0.00012]
[1733851590932,0.00119086,94921.0,94920.0,0.36101263]
[1733851591135,0.3608,94951.0,94948.0,0.052641]
[1733851591434,0.3608,94951.0,94950.0,0.00012]
[1733851591435,0.42210866,94951.0,94950.0,0.00012]
[1733851592030,0.36954447,94951.0,94950.0,0.00012]
[1733851592534,7.581e-05,94951.0,94950.0,0.00012]
[1733851593345,0.3608,94983.0,94950.0,0.00882816]
[1733851593532,0.69635375,94990.0,94969.0,0.3608]
[1733851593533,0.4248,94990.0,94969.0,0.3608]
[1733851593726,0.43345235,94990.0,94982.0,0.00012]
[1733851593926,0.43345235,94990.0,94989.0,0.00012]
[1733851594329,0.48615564,94990.0,94989.0,0.00012]
[1733851594531,0.50715876,94990.0,94989.0,0.00012]
[1733851594731,0.50715876,94990.0,94951.0,0.4278]
[1733851594732,0.75754076,94990.0,94951.0,0.4278]
[1733851594931,0.052623,94983.0,94973.0,0.052627]
[1733851595143,0.63235375,94987.0,94969.0,0.3608]
[1733851595337,0.03274076,94990.0,94988.0,0.052619]
[1733851595535,0.03774076,94990.0,94989.0,0.001]
[1733851595941,0.03774076,94990.0,94989.0,0.053619]
[1733851595942,0.00808529,94990.0,94989.0,0.053619]
[1733851596241,0.01708529,94990.0,94989.0,0.054619]
[1733851596942,0.01708529,94990.0,94989.0,0.002]
[1733851597142,0.01708529,94990.0,94989.0,0.001]
[1733851597143,0.00908529,94990.0,94989.0,0.001]
[1733851597537,0.05262,94987.0,94986.0,0.00012]
[1733851598143,1.51064839,94990.0,94986.0,0.00012]
[1733851598445,6e-05,94987.0,94986.0,0.00012]
[1733851598739,0.00106,94987.0,94986.0,0.00012]
[1733851598940,0.00106,94987.0,94965.0,0.052632]
[1733851598941,0.052622,94984.0,94965.0,0.052632]
[1733851599134,0.27155375,94970.0,94951.0,0.3608]
[1733851599336,6e-05,94966.0,94965.0,0.052632]
[1733851599537,1.5,94969.0,94965.0,0.052632]
[1733851599935,0.32418375,94970.0,94968.0,0.00012]
[1733851600334,0.32418375,94970.0,94960.0,0.052635]
[1733851600335,0.32418375,94970.0,94969.0,0.00012]
[1733851600533,1.55263,94970.0,94969.0,0.00012]
[1733851601241,0.05263,94970.0,94969.0,0.00012]
[1733851601448,0.0620498,94970.0,94969.0,0.00012]
[1733851602945,0.0670498,94970.0,94969.0,0.00012]
[1733851603444,0.0680498,94970.0,94969.0,0.00012]
[1733851603747,0.0680498,94970.0,94921.0,0.3608]
[1733851603748,0.052634,94962.0,94921.0,0.3608]
[1733851603946,0.052656,94923.0,94921.0,0.3608]
[1733851604149,0.3608,94927.0,94918.0,0.052658]
[1733851604653,0.413453,94927.0,94926.0,0.00012]
[1733851604948,0.052716,94921.0,94903.0,0.052666]
[1733851605246,0.052716,94921.0,94898.0,0.3608]
[1733851605247,0.05284887,94921.0,94898.0,0.3608]
[1733851606046,0.05284887,94921.0,94909.0,0.052663]
[1733851606451,0.05284887,94921.0,94898.0,0.3608]
[1733851606657,0.05484887,94921.0,94911.0,0.052662]
[1733851607546,0.05384887,94921.0,94911.0,0.052662]
[1733851607742,0.05584887,94921.0,94911.0,0.052662]
[1733851607951,0.05584887,94921.0,94898.0,0.3608]
[1733851607952,0.00319287,94921.0,94919.0,0.052657]
[1733851609151,0.3608,94941.0,94918.0,0.3608]
[1733851609358,0.00856107,94947.0,94931.0,0.3608]
[1733851609551,0.3608,94949.0,94940.0,0.00012]
[1733851609753,0.3608,94949.0,94948.0,0.052642]
[1733851609967,0.3608,94949.0,94948.0,0.00012]
[1733851610253,0.41356469,94949.0,94948.0,0.00012]
[1733851610660,0.05276469,94949.0,94948.0,0.00012]
[1733851610859,0.42229204,94949.0,94948.0,0.00012]
[1733851612648,0.42229204,94949.0,94948.0,0.052762]
[1733851612649,0.36965104,94949.0,94948.0,0.052762]
[1733851612852,0.36965104,94949.0,94948.0,0.053762]
[1733851613084,0.00012369,94949.0,94948.0,0.053762]
[1733851613578,0.00012369,94949.0,94948.0,0.00112]
[1733851613979,0.00012369,94949.0,94920.0,0.05274963]
[1733851613980,0.00112369,94949.0,94920.0,0.05274963]
[1733851614174,0.27155375,94930.0,94920.0,9.263e-05]
[1733851614366,6e-05,94921.0,94920.0,0.05274963]
[1733851616281,0.36086,94921.0,94920.0,9.263e-05]
[1733851616579,0.36086,94921.0,94895.0,0.25019603]
[1733851616580,0.052666,94903.0,94895.0,0.05267]
[1733851616767,0.052666,94903.0,94882.0,0.3608]
[1733851616768,0.27155375,94912.0,94885.0,0.00869731]
[1733851616971,6e-05,94896.0,94895.0,0.052671]
[1733851617276,0.27155375,94912.0,94911.0,0.052662]
[1733851617471,0.052661,94913.0,94911.0,0.052662]
[1733851617877,0.052661,94913.0,94899.0,0.052668]
[1733851617878,0.052666,94904.0,94899.0,0.052668]
[1733851618066,0.052666,94904.0,94894.0,0.36090548]
[1733851618067,0.052669,94899.0,94894.0,0.00010548]
[1733851618468,0.63235375,94904.0,94894.0,0.00010548]
[1733851618868,0.3608,94904.0,94903.0,0.00012]
[1733851619367,0.39104074,94921.0,94903.0,0.00012]
[1733851619567,0.3608,94921.0,94906.0,0.3608]
[1733851619874,0.3608,94931.0,94930.0,0.052651]
[1733851620267,0.3608,94931.0,94930.0,0.052771]
[1733851621171,0.3608,94931.0,94930.0,0.053771]
[1733851621172,0.005,94931.0,94930.0,0.053771]
[1733851621371,0.00841812,94950.0,94948.0,0.052642]
[1733851621876,0.00841812,94950.0,94948.0,0.052762]
[1733851622078,0.3608,94959.0,94948.0,0.052762]
[1733851622282,0.3608,94967.0,94948.0,0.413562]
[1733851622581,0.001,94949.0,94948.0,0.413562]
[1733851622776,0.00849541,94971.0,94948.0,0.36947982]
[1733851623086,0.3608,94979.0,94978.0,0.052625]
[1733851623380,0.413424,94979.0,94978.0,0.00012]
[1733851623572,0.05274664,94979.0,94978.0,0.00012]
[1733851623776,0.00012264,94979.0,94978.0,0.00012]
[1733851624477,0.00512264,94979.0,94978.0,0.00012]
[1733851625282,0.01412264,94979.0,94978.0,0.00012]
[1733851626781,0.37492264,94979.0,94978.0,0.00012]
[1733851627577,0.37492264,94979.0,94961.0,0.36089292]
[1733851627578,0.052625,94978.0,94961.0,9.292e-05]
[1733851627775,0.3608,94962.0,94961.0,9.292e-05]
[1733851627976,0.052637,94956.0,94945.0,0.052643]
[1733851628180,0.3608,94946.0,94932.0,0.3608]
[1733851628393,0.3608,94946.0,94926.0,0.3608]
[1733851628394,0.3608,94935.0,94933.0,0.05265]
[1733851628681,0.3608,94937.0,94917.0,0.25019603]
[1733851628872,0.3608,94922.0,94911.0,0.052661]
[1733851629077,0.3608,94922.0,94906.0,0.3608]
[1733851629273,0.3608,94920.0,94915.0,0.05266]
[1733851629883,0.05266,94916.0,94909.0,0.052663]
[1733851630076,0.32421375,94916.0,94909.0,0.052663]
[1733851630271,6e-05,94910.0,94909.0,0.052663]
[1733851630789,0.27155375,94930.0,94909.0,0.052663]
[1733851630790,0.05265,94934.0,94925.0,0.052654]
[1733851631091,0.05265,94934.0,94909.0,0.3608]
[1733851631092,0.02155555,94927.0,94909.0,0.3608]
[1733851631386,0.02155555,94927.0,94914.0,0.05266]
[1733851631387,0.32421075,94920.0,94914.0,0.05266]
[1733851631680,0.27255375,94920.0,94918.0,0.052658]
[1733851631981,0.001,94920.0,94918.0,0.413458]
[1733851632180,0.02155555,94927.0,94918.0,0.413458]
[1733851632181,0.02255555,94927.0,94919.0,0.052658]
[1733851632388,0.02255555,94927.0,94925.0,0.052654]
[1733851632574,0.02255555,94927.0,94926.0,0.00012]
[1733851632774,0.02155555,94927.0,94926.0,0.00012]
[1733851633585,0.02255555,94927.0,94926.0,0.00012]
[1733851634591,0.02255555,94927.0,94900.0,0.052668]
[1733851634592,0.052668,94902.0,94900.0,0.052668]
[1733851636075,0.053668,94902.0,94900.0,0.052668]
[1733851636503,0.052668,94900.0,94893.0,0.052672]
[1733851636688,0.052668,94900.0,94867.0,0.18764702]
[1733851636689,0.71476,94899.0,94859.0,0.18764702]
[1733851636884,0.052688,94865.0,94860.0,0.05269]
[1733851637187,0.27155375,94869.0,94857.0,0.3608]
[1733851637578,0.27155375,94869.0,94868.0,0.00012]
[1733851637892,0.00011605,94869.0,94868.0,0.00012]
[1733851638792,0.00111605,94869.0,94868.0,0.00012]
[1733851639999,0.00111605,94869.0,94868.0,0.00412]
[1733851640197,0.00111605,94869.0,94868.0,0.056806]
[1733851641297,0.00111605,94869.0,94868.0,0.00412]
[1733851641890,0.27155375,94900.0,94868.0,0.30412]
[1733851642093,0.27155375,94900.0,94888.0,0.3608]
[1733851642290,0.27155375,94900.0,94893.0,0.00012]
[1733851642291,0.052669,94898.0,94893.0,0.00012]
[1733851642509,0.3608,94894.0,94874.0,0.3608]
[1733851642693,0.27155375,94880.0,94874.0,0.3608]
[1733851642901,0.00012548,94879.0,94874.0,0.3608]
[1733851643409,0.27155375,94880.0,94874.0,0.3608]
[1733851643410,0.002,94898.0,94896.0,0.05267]
[1733851643589,0.002,94898.0,94897.0,0.3608]
[1733851644496,0.00212925,94898.0,94897.0,0.3608]
[1733851645092,0.00212925,94898.0,94896.0,0.05267]
[1733851645295,0.00012925,94898.0,94896.0,0.05267]
[1733851645599,6e-05,94897.0,94896.0,0.05267]
[1733851645795,6e-05,94897.0,94889.0,0.3608]
[1733851646096,6e-05,94897.0,94818.0,0.50137534]
[1733851646097,6e-05,94890.0,94886.0,0.3608]
[1733851646298,6e-05,94890.0,94888.0,0.052674]
[1733851646491,0.00512925,94898.0,94897.0,0.05267]
[1733851646894,0.00512925,94898.0,94897.0,0.05279]
[1733851647096,0.00312925,94898.0,94897.0,0.05279]
[1733851647995,0.00012925,94898.0,94897.0,0.05279]
[1733851648792,0.00612925,94898.0,94897.0,0.05279]
[1733851648997,0.00612925,94898.0,94897.0,0.00012]
[1733851649203,0.05879825,94898.0,94897.0,0.00012]
[1733851650694,0.05268,94879.0,94877.0,0.052681]
[1733851650893,0.05268,94879.0,94876.0,0.3608]
[1733851650894,0.052681,94877.0,94876.0,0.3608]
[1733851651099,0.052681,94877.0,94859.0,0.00091]
[1733851651100,0.413478,94883.0,94869.0,0.3608]
[1733851651298,0.052681,94877.0,94875.0,0.052682]
[1733851652393,0.3608,94883.0,94868.0,0.3608]
[1733851652593,0.052681,94876.0,94875.0,0.001]
[1733851652800,0.052681,94876.0,94875.0,0.004]
[1733851653424,0.052681,94876.0,94875.0,0.001]
[1733851654405,0.052682,94875.0,94874.0,0.413482]
[1733851655803,0.09410423,94897.0,94874.0,0.413482]
[1733851655804,0.27155375,94890.0,94874.0,0.3618]
[1733851656308,0.052682,94876.0,94874.0,0.3618]
[1733851656522,0.052682,94876.0,94874.0,0.001]
[1733851657196,0.052682,94876.0,94859.0,0.00091]
[1733851657403,0.05269,94861.0,94859.0,0.00091]
[1733851657602,6e-05,94860.0,94859.0,0.00091]
[1733851658599,6e-05,94860.0,94849.0,0.00010479]
[1733851658600,0.052696,94850.0,94849.0,0.00010479]
[1733851658803,0.052696,94850.0,94816.0,0.54844702]
[1733851658804,0.3608,94850.0,94816.0,0.54844702]
[1733851659005,0.3608,94824.0,94816.0,0.3608]
[1733851659310,0.05271,94825.0,94824.0,0.05271]
[1733851659714,0.27155375,94826.0,94805.0,0.54844702]
[1733851659715,0.052714,94819.0,94805.0,0.54844702]
[1733851660009,0.63235375,94826.0,94805.0,0.3608]
[1733851660010,0.27155375,94815.0,94805.0,0.3608]
[1733851660196,0.27155375,94815.0,94813.0,0.052716]
[1733851661504,0.27155375,94815.0,94805.0,0.36984754]
[1733851661505,0.63235375,94815.0,94807.0,0.052719]
[1733851661705,0.052719,94809.0,94807.0,0.052719]
[1733851661902,6e-05,94808.0,94807.0,0.052719]
[1733851662403,6e-05,94808.0,94805.0,0.3678]
[1733851662404,0.05272,94807.0,94805.0,0.007]
[1733851662718,0.052723,94801.0,94800.0,0.1001129]
[1733851663008,0.052723,94801.0,94782.0,0.3608]
[1733851663009,0.36086,94801.0,94782.0,0.3608]
[1733851663198,0.052733,94784.0,94782.0,0.3608]
[1733851663525,6e-05,94783.0,94782.0,0.3608]
[1733851664005,6e-05,94783.0,94773.0,0.3608]
[1733851664211,6e-05,94783.0,94768.0,0.00012858]
[1733851664212,0.413535,94780.0,94768.0,0.00012858]
[1733851664400,6e-05,94774.0,94768.0,0.00012858]
[1733851664601,0.052801,94769.0,94768.0,0.00012858]
[1733851665007,6e-05,94769.0,94768.0,0.00012858]
[1733851665598,6e-05,94769.0,94768.0,0.00112858]
[1733851666406,6e-05,94769.0,94758.0,0.3608]
[1733851666712,6e-05,94759.0,94745.0,0.3608]
[1733851666906,6e-05,94759.0,94753.0,0.05275]
[1733851666907,0.27155375,94755.0,94753.0,0.05275]
[1733851667208,0.27155375,94755.0,94747.0,0.052753]
[1733851667209,0.32430275,94755.0,94747.0,0.052753]
[1733851667411,0.052749,94755.0,94747.0,0.052753]
[1733851667798,0.05275,94754.0,94747.0,0.052753]
[1733851668200,0.001,94755.0,94749.0,0.052752]
[1733851668504,0.053749,94755.0,94754.0,0.00012]
[1733851669018,0.052749,94755.0,94754.0,0.00012]
[1733851669328,0.27155375,94757.0,94754.0,0.00012]
[1733851669503,0.27155375,94757.0,94756.0,0.052748]
[1733851669703,0.3608,94778.0,94756.0,0.00012]
[1733851669704,0.00914415,94762.0,94756.0,0.00012]
[1733851669914,0.27155375,94770.0,94756.0,0.00012]
[1733851670109,0.02117602,94777.0,94772.0,0.052739]
[1733851670415,0.00918731,94776.0,94772.0,0.413659]
[1733851670600,0.00918731,94776.0,94772.0,0.00012]
[1733851671108,0.00213191,94773.0,94772.0,0.00012]
[1733851672202,0.00213191,94773.0,94772.0,0.36092]
[1733851672203,0.00013191,94773.0,94772.0,0.36092]
[1733851672613,0.00013191,94773.0,94772.0,0.00112]
[1733851673115,9.1e-07,94773.0,94772.0,0.00112]
[1733851673419,0.3608,94813.0,94772.0,0.00112]
[1733851673420,0.27155375,94810.0,94775.0,0.052737]
[1733851673603,0.27155375,94800.0,94799.0,0.052724]
[1733851673917,0.27155375,94800.0,94792.0,0.3608]
[1733851673918,0.02082138,94803.0,94792.0,0.3608]
[1733851674208,6e-05,94793.0,94792.0,0.3608]
[1733851674426,0.00013731,94793.0,94792.0,0.3608]
[1733851676002,0.00013731,94793.0,94792.0,0.3618]
[1733851676603,0.001,94803.0,94802.0,0.052723]
[1733851677011,0.001,94803.0,94802.0,0.052843]
[1733851677409,0.3608,94805.0,94802.0,0.052843]
[1733851677607,8.247e-05,94803.0,94802.0,0.052843]
[1733851677806,8.247e-05,94803.0,94802.0,0.052723]
[1733851679327,0.00108247,94803.0,94802.0,0.052723]
[1733851679508,0.00108247,94803.0,94787.0,0.3608]
[1733851679740,0.00108247,94803.0,94780.0,0.00013292]
[1733851679741,0.3608,94794.0,94780.0,0.05286792]
[1733851679909,6e-05,94788.0,94780.0,0.05286792]
[1733851680117,0.052734,94782.0,94780.0,0.00013292]
[1733851680922,0.3608,94786.0,94772.0,0.00012]
[1733851680923,0.052739,94773.0,94772.0,0.00012]
[1733851681223,0.052739,94773.0,94754.0,0.052749]
[1733851681224,0.05274,94772.0,94754.0,0.052749]
[1733851681422,0.3608,94758.0,94748.0,0.3608]
[1733851681722,6e-05,94749.0,94748.0,0.3608]
[1733851681918,0.00018666,94749.0,94748.0,0.3608]
[1733851682308,0.00018666,94749.0,94745.0,0.052754]
[1733851682512,0.00018666,94749.0,94747.0,0.052753]
[1733851682715,0.00012666,94749.0,94747.0,0.052753]
[1733851682913,0.00012666,94749.0,94748.0,0.004]
[1733851684340,0.00112666,94749.0,94748.0,0.004]
[1733851684919,0.052753,94748.0,94739.0,0.052757]
[1733851685132,0.052753,94748.0,94735.0,0.00011407]
[1733851685133,0.27155375,94745.0,94742.0,0.052756]
[1733851685822,0.27155375,94745.0,94743.0,0.052755]
[1733851686012,0.27155375,94745.0,94739.0,0.3608]
[1733851686013,0.00112666,94749.0,94748.0,0.052753]
[1733851686212,0.00112666,94749.0,94748.0,0.413553]
[1733851686521,0.00112666,94749.0,94748.0,0.413673]
[1733851686722,0.00112666,94749.0,94748.0,0.052873]
[1733851687420,0.27155375,94780.0,94778.0,0.052736]
[1733851687723,0.27155375,94780.0,94749.0,0.052752]
[1733851687724,0.32428875,94780.0,94779.0,0.00012]
[1733851688037,0.3608,94788.0,94779.0,0.00012]
[1733851688221,0.38165323,94780.0,94779.0,0.00012]
[1733851688419,0.38165323,94780.0,94762.0,0.3608]
[1733851688420,0.38174338,94780.0,94762.0,0.3608]
[1733851688615,0.27155375,94772.0,94762.0,0.3608]
[1733851688817,0.3608,94763.0,94745.0,0.18764702]
[1733851689020,0.3608,94750.0,94743.0,0.052755]
[1733851689328,0.27155375,94745.0,94743.0,0.052755]
[1733851690222,0.052759,94737.0,94733.0,0.052761]
[1733851690417,0.27155375,94745.0,94730.0,0.00133]
[1733851690722,6e-05,94736.0,94735.0,0.05287407]
[1733851692226,6e-05,94736.0,94735.0,0.05587407]
[1733851692621,0.3608,94742.0,94735.0,0.00311407]
[1733851693026,0.27155375,94745.0,94741.0,0.00012]
[1733851693327,0.052755,94744.0,94740.0,0.052757]
[1733851693524,0.3608,94742.0,94740.0,0.052757]
[1733851693727,6e-05,94741.0,94735.0,0.00311407]
[1733851693924,0.052759,94737.0,94735.0,0.00311407]
[1733851694125,6e-05,94736.0,94735.0,0.00311407]
[1733851695221,6e-05,94736.0,94735.0,0.00011407]
[1733851695418,6e-05,94736.0,94735.0,0.00311407]
[1733851695720,0.05061431,94737.0,94735.0,0.00311407]
[1733851695925,0.3618,94742.0,94735.0,0.00311407]
[1733851696124,0.3618,94742.0,94740.0,0.052757]
[1733851696428,0.3608,94742.0,94740.0,0.052757]
[1733851696727,0.0214995,94744.0,94740.0,0.052757]
[1733851697034,0.0214995,94744.0,94743.0,0.00012]
[1733851697227,0.3822995,94744.0,94743.0,0.00012]
[1733851698527,0.052771,94716.0,94709.0,0.052774]
[1733851698724,0.052771,94716.0,94700.0,0.1]
[1733851698725,0.3608,94712.0,94708.0,0.052775]
[1733851698931,0.3608,94712.0,94700.0,0.1]
[1733851698932,0.27161375,94710.0,94702.0,0.052778]
[1733851699132,0.3608,94703.0,94700.0,0.1]
[1733851699434,6e-05,94701.0,94700.0,0.1]
[1733851699635,0.05289729,94702.0,94700.0,0.1]
[1733851699636,0.052778,94702.0,94700.0,0.1]
[1733851700023,0.052778,94702.0,94701.0,0.00012]
[1733851700528,0.3699928,94703.0,94701.0,0.052899]
[1733851700730,9.348e-05,94702.0,94701.0,0.052899]
[1733851701034,9.348e-05,94702.0,94701.0,0.052779]
[1733851701523,0.00109348,94702.0,94701.0,0.052779]
[1733851701833,0.00074073,94702.0,94701.0,0.055779]
[1733851702729,0.00067589,94702.0,94701.0,0.055779]
[1733851703230,0.00107626,94702.0,94701.0,0.055779]
[1733851704735,0.00101982,94702.0,94701.0,0.055779]
[1733851705720,0.00094982,94702.0,94701.0,0.003]
[1733851706130,0.00094982,94702.0,94701.0,0.055779]
[1733851706337,0.00984688,94702.0,94701.0,0.055779]
[1733851706629,0.00106478,94702.0,94701.0,0.055779]
[1733851707128,0.00106478,94702.0,94701.0,0.003]
[1733851707727,0.00106478,94702.0,94697.0,0.00167]
[1733851707728,0.05278,94698.0,94697.0,0.00167]
[1733851708031,0.05284,94698.0,94697.0,0.00167]
[1733851708530,0.27155375,94694.0,94681.0,0.05279]
[1733851708735,0.052787,94686.0,94670.0,0.3608]
[1733851708930,0.3608,94693.0,94670.0,0.3608]
[1733851708931,0.413583,94693.0,94670.0,0.3608]
[1733851709232,0.3608,94693.0,94684.0,0.052788]
[1733851709728,0.052786,94688.0,94684.0,0.052788]
[1733851710134,0.3608,94693.0,94684.0,0.052788]
[1733851710434,0.052788,94686.0,94684.0,0.052788]
[1733851710734,0.27255375,94694.0,94681.0,0.007]
[1733851710931,0.27255375,94694.0,94692.0,0.052784]
[1733851711230,0.27155375,94720.0,94719.0,0.052769]
[1733851711432,0.27155375,94729.0,94718.0,0.3608]
[1733851711731,0.4115,94749.0,94720.0,0.052768]
[1733851711930,0.27155375,94730.0,94729.0,0.052763]
[1733851712127,0.02156134,94736.0,94728.0,0.3608]
[1733851712323,7.976e-05,94735.0,94728.0,0.3608]
[1733851712523,6e-05,94729.0,94728.0,0.3608]
[1733851712836,0.052766,94724.0,94719.0,0.00012]
[1733851713038,0.36086,94729.0,94719.0,0.00012]
[1733851713039,0.3608,94720.0,94719.0,0.00012]
[1733851713333,0.36086,94720.0,94719.0,0.00012]
[1733851713924,6e-05,94720.0,94719.0,0.00012]
[1733851714132,6e-05,94720.0,94719.0,0.052889]
[1733851714329,6e-05,94720.0,94719.0,0.00012]
[1733851714530,0.36386,94720.0,94719.0,0.00012]
[1733851715231,0.36386,94720.0,94719.0,0.052889]
[1733851715632,0.00306,94720.0,94719.0,0.052889]
[1733851716723,0.00306,94720.0,94719.0,0.00012]
[1733851717227,0.02436381,94720.0,94695.0,0.3608]
[1733851717537,0.02436381,94720.0,94681.0,0.18806062]
[1733851717538,0.052842,94696.0,94681.0,0.18806062]
[1733851717737,0.052842,94696.0,94690.0,0.052785]
[1733851717926,6e-05,94682.0,94677.0,0.3608]
[1733851718243,0.052783,94694.0,94677.0,0.00937449]
[1733851718433,0.052783,94694.0,94691.0,0.052784]
[1733851718636,0.052783,94694.0,94693.0,0.00012]
[1733851719232,0.17666135,94697.0,94693.0,0.00012]
[1733851719728,0.001,94696.0,94694.0,0.052782]
[1733851719927,0.053782,94696.0,94694.0,0.052782]
[1733851720735,0.001,94694.0,94677.0,0.008]
[1733851720925,0.001,94694.0,94677.0,0.052792]
[1733851720926,0.052789,94683.0,94677.0,0.052792]
[1733851721327,0.05279,94682.0,94677.0,0.052792]
[1733851721526,0.3608,94684.0,94665.0,0.3608]
[1733851721744,0.052795,94673.0,94670.0,0.00930371]
[1733851721930,0.052795,94673.0,94657.0,0.36232]
[1733851721931,6e-05,94672.0,94666.0,0.052798]
[1733851722435,6e-05,94672.0,94668.0,0.052797]
[1733851723024,6e-05,94672.0,94669.0,0.052796]
[1733851723427,6e-05,94672.0,94671.0,0.05287506]
[1733851723631,0.00106,94672.0,94671.0,0.05287506]
[1733851723943,0.00206,94672.0,94671.0,0.06187506]
[1733851725224,0.00206,94672.0,94671.0,0.00907906]
[1733851729035,0.36286,94672.0,94671.0,0.00907906]
[1733851730047,0.36086,94672.0,94671.0,0.00407906]
[1733851730242,0.36186,94672.0,94671.0,0.00407906]
[1733851730939,0.36186,94672.0,94671.0,0.00307906]
[1733851731834,0.36186,94672.0,94671.0,0.05587506]
[1733851732137,0.36186,94672.0,94671.0,0.00307906]
[1733851732534,0.45614061,94672.0,94671.0,0.00307906]
[1733851732732,0.00106,94672.0,94671.0,0.05587506]
[1733851732935,0.00106,94672.0,94671.0,0.41667506]
[1733851733135,0.17666135,94690.0,94671.0,0.41667506]
[1733851733136,0.09428061,94692.0,94672.0,0.052795]
[1733851733335,0.47643428,94699.0,94694.0,0.052783]
[1733851733538,0.38215367,94699.0,94694.0,0.052783]
[1733851733834,0.02135367,94699.0,94694.0,0.413583]
[1733851734034,0.00950734,94696.0,94691.0,0.00012]
[1733851734236,0.052785,94691.0,94674.0,0.052793]
[1733851734439,0.052784,94692.0,94676.0,0.052793]
[1733851734440,0.052792,94678.0,94676.0,0.052793]
[1733851734744,0.17666135,94684.0,94671.0,0.00307906]
[1733851734947,0.052794,94673.0,94671.0,0.00307906]
[1733851735333,0.052794,94673.0,94652.0,0.18851442]
[1733851735334,0.052796,94671.0,94652.0,0.052806]
[1733851735537,0.17666135,94662.0,94637.0,0.3608]
[1733851735747,0.052803,94658.0,94646.0,0.3608]
[1733851736045,0.052803,94658.0,94655.0,0.052804]
[1733851736445,0.17666135,94662.0,94646.0,0.3608]
[1733851736747,0.22946235,94662.0,94658.0,0.052802]
[1733851737047,0.23046235,94662.0,94658.0,0.052802]
[1733851737245,0.3608,94661.0,94658.0,0.052802]
[1733851737445,0.3608,94661.0,94659.0,0.052802]
[1733851737638,0.3608,94661.0,94655.0,0.002]
[1733851737835,0.052804,94656.0,94655.0,0.002]
[1733851738033,0.14731885,94656.0,94655.0,0.002]
[1733851738236,0.14731848,94656.0,94655.0,0.002]
[1733851738635,0.052804,94656.0,94655.0,0.002]
[1733851738945,0.052809,94647.0,94644.0,0.05281]
[1733851739136,0.052809,94647.0,94645.0,0.05281]
[1733851739335,0.052812,94642.0,94640.0,0.052813]
[1733851739840,6e-05,94641.0,94640.0,0.052813]
[1733851740241,6e-05,94641.0,94632.0,0.00013585]
[1733851740440,0.052814,94638.0,94637.0,0.052814]
[1733851740940,0.052816,94634.0,94632.0,0.00013585]
[1733851741136,0.052816,94634.0,94632.0,0.05295285]
[1733851741545,0.052815,94637.0,94634.0,0.052816]
[1733851741844,0.052815,94637.0,94636.0,0.00012]
[1733851742243,0.001,94641.0,94640.0,0.055813]
[1733851742448,0.09451448,94656.0,94655.0,0.052804]
[1733851742641,0.17676682,94660.0,94659.0,0.052802]
[1733851742642,0.09451157,94660.0,94659.0,0.052802]
[1733851742950,0.09451157,94660.0,94659.0,0.052922]
[1733851742951,0.00010547,94660.0,94659.0,0.052922]
[1733851743143,0.0209044,94660.0,94659.0,0.052922]
[1733851743658,0.00010547,94660.0,94659.0,0.413722]
[1733851744050,0.05290747,94660.0,94659.0,0.00012]
[1733851744745,0.05690747,94660.0,94659.0,0.00012]
[1733851745246,0.05290747,94660.0,94659.0,0.00012]
[1733851745552,0.50822675,94660.0,94659.0,0.00112]
[1733851745747,0.53970953,94660.0,94659.0,0.00112]
[1733851745943,0.41370747,94660.0,94659.0,0.00112]
[1733851747048,0.41470747,94660.0,94659.0,0.00012]
[1733851747954,0.41570747,94660.0,94659.0,0.00012]
[1733851748154,0.052816,94634.0,94633.0,0.00066]
[1733851748359,0.052816,94634.0,94633.0,0.053477]
[1733851748540,6e-05,94634.0,94633.0,0.053477]
[1733851749454,6e-05,94634.0,94633.0,0.414277]
[1733851749644,0.12614831,94654.0,94653.0,0.052806]
[1733851749850,0.00010547,94660.0,94659.0,0.052802]
[1733851750355,0.00010547,94660.0,94659.0,0.413602]
[1733851750658,0.052792,94679.0,94659.0,0.54931442]
[1733851750659,0.02123575,94672.0,94659.0,0.54931442]
[1733851750860,0.12614831,94664.0,94653.0,0.00012]
[1733851751151,0.052865,94654.0,94653.0,0.00012]
[1733851751353,0.413665,94654.0,94653.0,0.00012]
[1733851751658,0.41378812,94654.0,94653.0,0.00012]
[1733851752660,0.41478812,94654.0,94653.0,0.00012]
[1733851753253,0.41578812,94654.0,94653.0,0.00012]
[1733851753456,0.41678812,94654.0,94653.0,0.00012]
[1733851753849,0.47770102,94654.0,94653.0,0.00012]
[1733851754049,0.052816,94636.0,94635.0,0.052816]
[1733851754249,0.47770102,94654.0,94640.0,0.052812]
[1733851754250,0.052812,94641.0,94640.0,0.052812]
[1733851754652,0.3608,94644.0,94643.0,0.052811]
[1733851755152,0.01567449,94654.0,94653.0,0.052806]
[1733851755351,0.052808,94649.0,94648.0,0.052808]
[1733851755546,0.052813,94639.0,94638.0,0.3608]